bitfinex/quotes_ETHUSD_20251217
["timestamp","ask_amount","ask_price","bid_price","bid_amount"]
[1765997487592,0.03547987,2816.3,2816.0,0.0036954]
[1765997488401,18.8552,2816.2,2815.3,0.002]
[1765997488601,6.444157,2816.0,2814.7,1.74330129]
[1765997488803,3.70912,2815.8,2814.6,1.70441261]
[1765997489030,12.887015,2815.6,2814.5,1.74989982]
[1765997489332,12.887015,2815.6,2815.0,1.0904]
[1765997489711,18.39824,2815.6,2815.0,1.0904]
[1765997489915,0.03547987,2815.1,2815.0,1.0904]
[1765997490294,0.582,2815.5,2815.0,1.0904]
[1765997490527,25.584367,2815.4,2815.0,1.0904]
[1765997490699,27.466527,2815.2,2815.0,1.0904]
[1765997490903,0.82488696,2815.3,2814.0,0.1]
[1765997490904,30.0,2815.0,2814.0,0.1]
[1765997491098,30.0,2815.0,2812.0,3.33161157]
[1765997491099,4.070567,2814.9,2813.5,5.8286]
[1765997491294,0.582,2814.8,2813.4,2.2193]
[1765997491496,4.499354,2814.7,2813.8,2.2193]
[1765997491832,6.068384,2814.6,2813.4,2.2193]
[1765997492041,0.18538996,2815.0,2813.2,0.582]
[1765997492042,2.484958,2814.9,2813.2,0.582]
[1765997492200,8.68222,2814.8,2813.6,5.8286]
[1765997492388,0.582,2814.9,2812.6,11.49490568]
[1765997492595,0.582,2814.9,2812.0,3.33161157]
[1765997492596,12.772431,2814.8,2813.2,8.0479]
[1765997495229,2.00709,2814.1,2813.1,5.8286]
[1765997495392,2.00709,2814.1,2812.1,0.002]
[1765997495393,2.00709,2814.1,2812.9,2.2193]
[1765997495729,2.301813,2814.1,2812.8,5.8286]
[1765997495914,2.301813,2814.1,2812.1,0.002]
[1765997495915,0.585,2814.2,2813.0,5.8286]
[1765997496102,2.230058,2814.1,2813.3,8.0479]
[1765997496302,0.46438023,2814.8,2813.3,8.6329]
[1765997496509,0.46438023,2814.4,2813.5,5.8286]
[1765997496833,5.535662,2814.3,2813.5,8.0479]
[1765997497004,1.32547987,2815.7,2813.4,2.2193]
[1765997497226,1.32547987,2815.7,2813.8,5.8286]
[1765997497227,27.235103,2815.4,2813.8,5.8286]
[1765997497436,6.10756,2815.4,2813.9,5.8286]
[1765997497599,8.078871,2815.9,2814.5,5.8286]
[1765997497941,8.078871,2815.9,2814.6,0.585]
[1765997497942,5.266694,2815.9,2814.6,0.585]
[1765997498108,7.303059,2815.7,2813.7,9.76353414]
[1765997498423,6.573895,2815.7,2814.6,2.2193]
[1765997498623,8.585154,2815.7,2815.0,5.8286]
[1765997498824,0.5851694,2815.8,2815.2,5.8286]
[1765997499028,5.67797987,2817.2,2815.3,2.2193]
[1765997499236,10.420615,2817.1,2815.8,5.8286]
[1765997499410,6.576079,2817.7,2816.4,5.8286]
[1765997499715,5.6425,2818.4,2817.1,2.2193]
[1765997499716,6.747628,2818.0,2817.1,2.2193]
[1765997499904,5.738339,2818.0,2817.1,5.8286]
[1765997500111,1.5e-05,2818.1,2817.6,2.2193]
[1765997500415,1.5e-05,2818.1,2815.8,1.77713925]
[1765997500416,1.5e-05,2818.1,2818.0,8.0479]
[1765997500616,1.5e-05,2819.3,2818.4,5.9943]
[1765997500813,1.5e-05,2819.3,2818.6,5.9943]
[1765997500995,1.5e-05,2819.3,2819.1,2.2028]
[1765997501196,0.03547987,2821.2,2818.0,0.46438023]
[1765997501197,18.545938,2821.1,2819.2,0.585]
[1765997501393,4.234175,2821.1,2819.6,8.1971]
[1765997501625,0.46438023,2820.9,2819.6,8.1971]
[1765997501837,18.545938,2820.8,2819.6,8.1971]
[1765997502042,18.545938,2820.8,2819.6,2.2028]
[1765997502249,18.545938,2820.7,2819.6,2.2028]
[1765997502398,14.974291,2820.7,2819.6,2.2028]
[1765997502597,0.46438023,2820.4,2819.6,2.2028]
[1765997502828,14.154542,2820.3,2819.6,2.2028]
[1765997503141,0.03547987,2820.8,2817.8,0.405504]
[1765997503142,16.496154,2820.1,2817.8,0.405504]
[1765997503327,16.496154,2820.1,2817.2,0.46438023]
[1765997503328,0.46438023,2819.8,2817.2,0.46438023]
[1765997503496,11.964474,2819.7,2818.3,5.9943]
[1765997503823,6.744267,2819.7,2818.7,2.2028]
[1765997504035,6.744267,2819.7,2818.8,2.2028]
[1765997504344,0.46438023,2819.8,2818.2,8.1971]
[1765997504345,0.46438023,2819.4,2818.2,8.1971]
[1765997504637,0.46438023,2819.2,2817.8,2.2028]
[1765997504805,0.4998601,2819.9,2818.4,2.2028]
[1765997505013,8.697223,2819.8,2818.6,2.2028]
[1765997505212,10.739745,2819.5,2818.4,5.9943]
[1765997505413,0.46438023,2820.0,2818.3,6.02978238]
[1765997505612,3.784143,2819.9,2818.9,5.9943]
[1765997505802,3.784143,2819.9,2819.0,5.9943]
[1765997506132,13.124143,2820.1,2819.2,2.2028]
[1765997506297,3.894819,2820.1,2819.4,2.2028]
[1765997506631,0.46438023,2819.9,2818.8,8.1971]
[1765997506929,0.46438023,2819.7,2818.8,2.2028]
[1765997507096,0.46438023,2819.7,2818.5,0.585]
[1765997507299,18.545938,2819.6,2818.4,2.7878]
[1765997507599,2.92142,2819.6,2818.4,6.5793]
[1765997507794,2.92142,2819.6,2818.5,5.9943]
[1765997508025,0.46438023,2819.4,2817.3,2.2028]
[1765997508224,17.397151,2819.3,2818.0,5.9943]
[1765997508426,0.46438023,2819.5,2818.5,5.9943]
[1765997508596,4.419239,2819.2,2818.6,2.2028]
[1765997508802,11.525639,2819.5,2818.6,2.2028]
[1765997508998,3.437429,2819.6,2818.8,2.2028]
[1765997509203,0.03547987,2819.7,2818.8,2.2028]
[1765997509501,3.050251,2819.6,2818.9,0.585]
[1765997509836,0.03547987,2820.8,2819.5,2.2028]
[1765997510021,3.212413,2820.3,2819.6,2.2028]
[1765997510435,3.212413,2820.3,2817.9,3.58420461]
[1765997510605,3.212413,2820.3,2817.5,0.03547987]
[1765997510606,16.170938,2820.1,2818.0,0.585]
[1765997510937,5.51527987,2820.2,2818.0,0.585]
[1765997510938,8.009205,2819.7,2818.7,5.9943]
[1765997511131,8.009205,2819.7,2819.0,2.2028]
[1765997511335,0.001,2820.4,2819.1,1.8476]
[1765997511535,4.420699,2820.3,2819.4,2.2028]
[1765997511742,3.172385,2820.3,2819.6,2.2028]
[1765997511907,0.001,2820.4,2819.6,2.2028]
[1765997512106,2.573099,2820.9,2819.6,2.2028]
[1765997512708,2.212942,2820.9,2819.6,2.2028]
[1765997512939,0.46438023,2820.8,2819.6,2.2028]
[1765997513146,2.573099,2820.9,2819.6,2.2028]
[1765997513644,0.001,2821.0,2819.6,2.2028]
[1765997513935,5.4798,2820.9,2819.6,2.2028]
[1765997514277,3.03747923,2820.8,2819.6,2.2028]
[1765997514441,2.573099,2820.7,2819.6,2.2028]
[1765997514919,2.573099,2820.1,2817.7,2.2028]
[1765997515252,2.573099,2820.1,2818.8,2.2028]
[1765997515537,2.573099,2820.1,2818.9,2.2028]
[1765997515860,2.410149,2820.1,2818.9,2.2028]
[1765997516145,2.573099,2820.3,2819.0,2.2028]
[1765997516439,2.573099,2820.4,2819.0,2.2028]
[1765997516807,2.573099,2820.5,2819.0,2.2028]
[1765997517034,2.1826,2820.3,2819.0,2.2028]
[1765997517245,8.052899,2820.1,2819.0,2.2028]
[1765997517540,0.46438023,2820.2,2819.0,2.2028]
[1765997517837,2.573099,2820.6,2819.0,2.2028]
[1765997518228,2.573099,2820.6,2819.1,0.584]
[1765997518421,2.573099,2820.5,2819.3,2.2028]
[1765997518944,2.573099,2820.5,2819.3,2.7868]
[1765997519238,2.573099,2820.5,2819.4,2.2028]
[1765997519440,5.4798,2820.2,2817.9,2.2028]
[1765997519617,2.573099,2820.1,2818.1,2.2028]
[1765997520209,2.573099,2820.1,2818.1,2.66718023]
[1765997520413,0.001,2820.6,2818.1,2.66718023]
[1765997520414,2.573099,2820.5,2818.7,2.2028]
[1765997520715,2.573099,2820.5,2818.9,2.2028]
[1765997521019,0.001,2820.6,2819.0,2.2028]
[1765997521232,2.573099,2820.5,2819.2,2.2028]
[1765997521443,0.001,2820.6,2819.2,4.01147591]
[1765997521635,0.001,2821.4,2819.5,2.1989]
[1765997521948,0.001,2821.4,2819.7,2.2028]
[1765997522147,0.001,2821.4,2819.9,2.2028]
[1765997522443,0.001,2821.7,2820.4,2.2028]
[1765997522642,0.001,2821.7,2820.1,9.28789799]
[1765997522643,0.001,2821.7,2820.6,2.2028]
[1765997523146,0.03547987,2822.4,2820.6,2.2028]
[1765997523147,0.001,2822.9,2821.3,9.28789799]
[1765997523447,0.001,2822.9,2821.9,2.2028]
[1765997523743,0.001,2823.6,2822.1,2.2028]
[1765997523944,0.001,2824.8,2823.0,2.2028]
[1765997524144,0.001,2824.8,2823.2,2.2028]
[1765997524347,5.4798,2824.4,2821.9,2.2028]
[1765997524544,0.03547987,2824.2,2822.1,2.2028]
[1765997524845,0.03547987,2824.2,2822.0,1.26866023]
[1765997524846,0.51986186,2824.3,2823.0,2.2028]
[1765997525050,0.51986186,2824.3,2822.9,9.28789799]
[1765997525051,0.03647987,2824.7,2823.2,2.2028]
[1765997525350,6.744218,2824.0,2822.2,2.2028]
[1765997525649,0.5008601,2824.7,2822.4,2.2028]
[1765997525650,5.4798,2823.8,2822.4,2.2028]
[1765997525852,0.03547987,2824.3,2822.4,2.2028]
[1765997526344,0.03547987,2824.5,2822.3,2.2028]
[1765997526345,5.94418023,2824.4,2822.3,2.2028]
[1765997526648,5.94418023,2824.4,2821.6,0.405504]
[1765997526649,5.4798,2823.9,2821.7,7.79327729]
[1765997526827,0.03547987,2823.4,2821.3,2.2028]
[1765997527025,0.03547987,2823.4,2821.5,2.66718023]
[1765997527225,0.03547987,2823.8,2821.8,2.2028]
[1765997527429,5.51527987,2823.8,2822.0,2.2028]
[1765997527635,0.51986186,2823.7,2822.1,0.586]
[1765997527958,0.51986186,2823.7,2821.5,0.46438023]
[1765997527959,0.03547987,2823.9,2822.2,2.2028]
[1765997528173,0.03547987,2823.5,2821.0,0.0435]
[1765997528380,2.1826,2823.4,2821.0,2.2028]
[1765997528513,2.1826,2823.4,2821.4,2.2028]
[1765997528717,0.46438023,2823.8,2821.5,2.2028]
[1765997528718,0.26824601,2823.3,2821.5,2.2028]
[1765997528948,2.1826,2823.6,2821.8,0.0435]
[1765997529118,1.70578672,2823.6,2821.8,0.586]
[1765997529321,0.405504,2823.7,2821.9,2.2028]
[1765997529322,0.02735974,2822.2,2821.9,2.2028]
[1765997529526,2.1826,2823.9,2822.0,2.2028]
[1765997529725,2.1826,2823.9,2822.1,0.587]
[1765997529922,2.1826,2823.9,2822.2,2.2028]
[1765997530144,0.03547987,2823.7,2822.4,2.2028]
[1765997530331,5.4798,2823.6,2822.5,0.587]
[1765997530541,0.03547987,2823.3,2822.5,0.587]
[1765997530745,0.03547987,2823.9,2822.6,2.1432]
[1765997530923,0.03547987,2824.3,2822.6,2.1432]
[1765997531122,0.03547987,2824.5,2822.8,2.1432]
[1765997531318,0.03547987,2824.5,2823.0,2.60758023]
[1765997531519,0.03547987,2824.4,2823.3,2.1432]
[1765997531793,0.03547987,2823.9,2822.7,0.31945802]
[1765997532061,0.03547987,2823.9,2822.7,0.587]
[1765997532224,0.03547987,2822.9,2822.7,2.1123]
[1765997532560,0.03547987,2822.9,2822.4,0.587]
[1765997532723,0.03547987,2822.9,2821.8,2.1123]
[1765997532924,0.03547987,2822.7,2822.0,2.1123]
[1765997533229,0.03547987,2823.3,2822.0,2.0413]
[1765997533432,0.03547987,2822.7,2822.2,1.9704]
[1765997533833,0.03547987,2822.9,2822.2,1.9704]
[1765997534038,0.03547987,2822.7,2822.2,1.9704]
[1765997534255,0.03547987,2822.7,2822.3,0.587]
[1765997534454,0.03547987,2823.3,2822.4,1.9349]
[1765997534627,0.03547987,2823.5,2822.5,2.2026]
[1765997534628,0.03547987,2823.2,2822.5,2.2026]
[1765997534960,0.03547987,2823.2,2822.6,2.2026]
[1765997535165,3.91073709,2824.3,2822.6,2.2026]
[1765997535166,5.4397,2824.6,2822.7,1.5801]
[1765997535324,2.1706,2824.4,2822.7,1.5801]
[1765997535522,0.03547987,2823.2,2822.8,0.587]
[1765997535724,0.03547987,2823.2,2822.9,1.5801]
[1765997536028,0.03547987,2823.3,2823.0,0.587]
[1765997536551,0.03547987,2823.8,2823.1,1.61552205]
[1765997536743,0.03547987,2823.7,2823.1,1.5801]
[1765997536955,0.001,2824.3,2823.1,1.79681]
[1765997537130,0.03547987,2823.7,2823.2,0.587]
[1765997537464,0.03647987,2824.3,2823.3,1.1898]
[1765997537672,0.03547987,2824.0,2823.3,1.1898]
[1765997537878,0.03547987,2824.5,2823.2,0.587]
[1765997538042,0.1396,2824.9,2823.4,0.46438023]
[1765997538367,0.1396,2824.9,2823.6,0.86988423]
[1765997538567,0.1396,2824.9,2823.8,0.405504]
[1765997538769,0.1396,2824.9,2824.1,0.46438023]
[1765997538975,0.1396,2824.9,2824.2,0.992504]
[1765997539173,0.1396,2824.9,2824.3,0.587]
[1765997539466,0.1396,2824.9,2824.6,0.86988423]
[1765997539669,0.1396,2824.9,2824.6,1.73620038]
[1765997539869,0.001,2825.3,2824.7,0.991504]
[1765997540075,0.6995099,2825.4,2825.3,8.66316152]
[1765997540234,1e-08,2825.4,2825.3,9.24916152]
[1765997540436,1e-08,2825.4,2825.3,0.86988423]
[1765997540731,1e-08,2825.4,2825.3,1.05038023]
[1765997540940,1e-08,2825.4,2825.3,1.45588423]
[1765997541145,1e-08,2825.4,2825.3,0.46438023]
[1765997541335,1e-08,2825.4,2825.3,0.586]
[1765997541769,1e-08,2825.4,2825.3,1.45588423]
[1765997541982,1e-08,2825.4,2825.3,2.41619485]
[1765997542267,1e-08,2825.4,2823.7,0.02831858]
[1765997542450,1e-08,2825.4,2824.6,0.405504]
[1765997542650,1e-08,2825.4,2824.5,7.79327729]
[1765997542850,1e-08,2825.4,2824.6,0.586]
[1765997543051,1e-08,2825.4,2824.7,0.405504]
[1765997543255,1e-08,2825.4,2824.7,1.33042015]
[1765997543652,1e-08,2825.4,2824.8,0.586]
[1765997544369,1e-08,2825.4,2823.8,0.405504]
[1765997544544,0.00100001,2825.4,2824.0,0.405504]
[1765997544954,0.00100001,2825.4,2823.8,0.02123894]
[1765997544955,0.00100001,2825.4,2823.8,0.42674294]
[1765997545164,0.00100001,2825.4,2824.3,0.86988423]
[1765997545454,0.00100001,2825.4,2824.3,1.33069638]
[1765997545655,0.00100001,2825.4,2823.8,0.405504]
[1765997545858,0.00100001,2825.4,2823.7,7.79327729]
[1765997546054,0.00100001,2825.4,2823.9,0.586]
[1765997546267,0.00100001,2825.4,2824.2,7.79327729]
[1765997546468,0.00100001,2825.4,2824.3,1.24370796]
[1765997546877,0.00100001,2825.4,2823.4,7.79327729]
[1765997547045,0.00100001,2825.4,2823.5,0.586]
[1765997547396,5.845204,2825.1,2823.5,0.586]
[1765997547539,7.6103,2824.3,2823.5,0.586]
[1765997548663,7.6103,2824.3,2823.1,0.586]
[1765997548940,0.46438023,2824.8,2823.1,0.586]
[1765997549141,9.34663835,2824.9,2823.2,7.79327729]
[1765997549142,0.02123894,2824.9,2823.2,7.79327729]
[1765997549338,0.02123894,2824.9,2823.3,0.86988423]
[1765997549669,7.61130001,2825.4,2823.8,0.46438023]
[1765997549883,7.61130001,2825.4,2823.9,0.586]
[1765997550184,0.46438023,2825.1,2823.9,0.586]
[1765997550540,0.00100001,2825.4,2823.9,0.586]
[1765997550752,0.02123894,2825.3,2823.9,0.586]
[1765997550978,0.02123894,2824.9,2822.6,7.79327729]
[1765997551187,7.6103,2824.5,2822.7,1.36532773]
[1765997551364,7.6103,2824.5,2822.7,1.82970796]
[1765997551755,0.46438023,2824.4,2822.7,1.36532773]
[1765997552000,0.02123894,2824.7,2823.5,0.002]
[1765997552190,7.6103,2824.6,2823.5,0.002]
[1765997553009,7.63153894,2824.4,2823.5,0.002]
[1765997553487,0.02123894,2824.4,2823.5,0.002]
[1765997553992,0.48561917,2824.4,2823.5,0.002]
[1765997554214,0.02123894,2824.4,2823.5,0.002]
[1765997554417,0.48561917,2824.9,2823.5,0.002]
[1765997554722,0.02123894,2824.7,2823.5,0.002]
[1765997555022,0.02123894,2825.3,2823.6,7.79327729]
[1765997555210,0.02123894,2825.3,2823.7,1.82990796]
[1765997555621,0.00100001,2825.4,2823.8,0.405504]
[1765997556031,0.00100001,2825.4,2823.9,0.586]
[1765997556712,0.02123894,2825.3,2823.9,0.586]
[1765997556922,0.00100001,2825.4,2823.9,0.586]
[1765997557235,2.63498023,2825.2,2823.9,0.586]
[1765997557403,2.63498023,2825.2,2823.5,0.002]
[1765997557404,2.1706,2825.2,2823.5,0.002]
[1765997557605,2.1706,2825.2,2823.9,0.586]
[1765997557606,0.46438023,2825.1,2823.9,0.586]
[1765997558334,0.00100001,2825.4,2823.9,0.586]
[1765997558830,0.46438023,2825.2,2823.9,0.586]
[1765997559033,0.46438023,2825.2,2823.8,0.002]
[1765997559232,0.46438023,2825.0,2823.9,0.586]
[1765997559533,2.1706,2824.9,2823.8,0.002]
[1765997559710,0.00100001,2825.4,2823.8,0.002]
[1765997559711,7.20290878,2825.2,2823.8,0.002]
[1765997559914,5.4397,2824.8,2823.8,0.002]
[1765997560114,0.46438023,2824.7,2823.8,0.002]
[1765997560317,1.71509941,2824.9,2823.8,0.002]
[1765997560521,9.81374757,2824.7,2823.8,0.002]
[1765997560705,0.02123894,2824.6,2823.8,0.002]
[1765997561226,9.93361635,2824.6,2823.8,0.002]
[1765997561729,0.02123894,2825.0,2823.8,0.002]
[1765997561730,2.369,2825.0,2823.8,0.002]
[1765997561934,5.7657,2824.4,2823.8,0.002]
[1765997562132,1.77476425,2824.4,2823.5,0.002]
[1765997562301,5.7657,2824.2,2823.5,0.002]
[1765997562505,0.46438023,2824.1,2823.5,0.002]
[1765997563006,2.369,2824.3,2823.5,0.002]
[1765997563439,2.369,2824.6,2823.5,0.002]
[1765997563732,1.77476425,2824.4,2823.5,0.002]
[1765997563920,0.48561917,2824.5,2823.5,0.002]
[1765997564121,0.46438023,2824.3,2823.5,0.002]
[1765997564341,8.59908023,2824.3,2823.5,0.002]
[1765997564633,0.46438023,2824.0,2823.5,0.002]
[1765997564845,8.1347,2823.9,2823.5,0.002]
[1765997565003,0.48561917,2824.2,2822.6,0.587]
[1765997565339,3.54033233,2825.4,2823.3,7.79327729]
[1765997565340,2.369,2824.6,2823.3,7.79327729]
[1765997565526,8.1347,2824.5,2822.9,0.5889]
[1765997565831,0.46438023,2824.2,2822.9,0.5889]
[1765997566036,0.46438023,2824.2,2822.9,0.0039]
[1765997566233,2.29462611,2824.4,2822.6,0.002]
[1765997566437,0.48561917,2824.1,2822.6,0.002]
[1765997566741,8.1347,2823.5,2822.6,0.002]
[1765997566940,0.46438023,2823.4,2822.6,0.002]
[1765997567131,2.369,2823.3,2822.3,0.002]
[1765997567433,8.59908023,2823.3,2822.3,0.002]
[1765997567627,0.46438023,2823.1,2822.3,0.002]
[1765997568012,1.78090962,2823.3,2822.0,0.002]
[1765997568221,2.19249276,2823.2,2822.0,0.002]
[1765997568403,0.46438023,2822.9,2822.0,0.002]
[1765997568807,5.7657,2822.8,2822.0,0.002]
[1765997569009,0.46438023,2822.8,2822.0,0.002]
[1765997569307,0.46438023,2822.4,2821.5,0.002]
[1765997569508,8.59908023,2822.4,2821.5,0.002]
[1765997569808,5.7657,2822.7,2821.5,0.002]
[1765997570313,0.46438023,2822.9,2821.5,0.002]
[1765997570314,8.1347,2822.3,2821.5,0.002]
[1765997570506,0.46438023,2822.3,2821.5,0.002]
[1765997571121,0.02123894,2823.0,2821.5,0.002]
[1765997571122,8.1347,2823.5,2821.9,7.79327729]
[1765997571418,5.7657,2823.8,2822.1,0.0079]
[1765997571651,5.7657,2823.4,2821.7,0.585]
[1765997571952,5.7657,2823.1,2821.7,0.585]
[1765997572150,8.1347,2823.1,2821.7,0.585]
[1765997572369,0.46438023,2823.0,2821.7,0.585]
[1765997573356,0.02123894,2823.4,2821.7,0.585]
[1765997573522,0.02123894,2823.4,2821.8,0.0079]
[1765997573721,0.46438023,2823.2,2821.8,0.0079]
[1765997574422,0.02123894,2823.2,2821.5,0.002]
[1765997574624,0.46438023,2822.8,2821.5,0.002]
[1765997574832,0.48561917,2823.2,2821.5,0.002]
[1765997575027,0.46438023,2823.1,2821.6,0.0079]
[1765997575452,0.02123894,2823.2,2821.6,0.0079]
[1765997575634,0.02123894,2823.2,2821.5,0.002]
[1765997575635,2.369,2822.7,2821.5,0.002]
[1765997575836,8.1347,2822.3,2821.5,0.002]
[1765997576822,5.7657,2822.5,2821.5,0.002]
[1765997577021,0.02123894,2822.6,2821.5,0.002]
[1765997577022,0.02123894,2822.4,2821.5,0.002]
[1765997577222,0.02123894,2822.4,2821.2,0.002]
[1765997577223,5.7657,2822.1,2821.2,0.002]
[1765997577536,0.46438023,2822.0,2821.2,0.002]
[1765997577731,2.369,2821.9,2821.2,0.002]
[1765997578053,8.1347,2821.9,2821.2,0.002]
[1765997579236,0.02123894,2822.4,2821.2,0.002]
[1765997579434,0.46438023,2822.2,2821.2,0.002]
[1765997580028,0.02123894,2822.6,2821.2,0.002]
[1765997580226,8.1347,2822.7,2821.2,0.002]
[1765997580453,0.02123894,2822.9,2821.2,0.002]
[1765997580634,5.78693894,2823.7,2821.5,0.405504]
[1765997580959,0.001,2823.5,2822.2,0.0029]
[1765997581163,1.76603804,2825.5,2822.9,9.27894884]
[1765997581328,5.7657,2824.5,2823.0,0.0079]
[1765997581659,0.001,2824.6,2823.2,0.0079]
[1765997581904,8.1347,2825.0,2823.1,0.405504]
[1765997582027,0.00100001,2825.4,2823.1,0.405504]
[1765997582028,0.00100001,2825.4,2823.4,0.405504]
[1765997582227,8.1347,2825.3,2823.9,0.0019]
[1765997582429,0.00100001,2825.4,2823.3,0.407404]
[1765997582643,2.83338023,2825.0,2823.5,0.405504]
[1765997582865,2.83338023,2825.0,2823.5,0.412404]
[1765997583025,2.83338023,2825.0,2823.6,0.584]
[1765997583026,0.46438023,2824.9,2823.6,0.584]
[1765997583237,8.59908023,2824.9,2823.6,0.584]
[1765997583456,2.369,2825.0,2822.6,0.46438023]
[1765997583659,0.02123894,2825.3,2823.2,0.584]
[1765997583660,2.369,2824.5,2823.2,0.584]
[1765997583868,0.46438023,2824.4,2823.2,0.584]
[1765997584384,0.46438023,2824.8,2823.4,0.0069]
[1765997584584,8.1347,2824.6,2823.2,0.584]
[1765997584881,5.7657,2824.8,2822.5,0.005]
[1765997585043,0.46438023,2824.7,2822.8,0.412404]
[1765997585390,0.46438023,2824.0,2822.7,0.5909]
[1765997586561,0.02123894,2824.9,2822.8,0.405504]
[1765997586843,8.1347,2824.5,2822.9,0.0069]
[1765997587169,8.1347,2825.3,2823.4,0.0069]
[1765997587341,0.46438023,2825.2,2823.6,0.405504]
[1765997587668,2.83338023,2824.7,2823.2,0.0069]
[1765997587868,0.02123894,2825.1,2823.3,0.584]
[1765997588088,0.46438023,2824.6,2823.3,0.584]
[1765997588239,2.369,2824.8,2823.3,0.584]
[1765997588579,2.17947964,2824.9,2823.3,0.584]
[1765997588755,0.46438023,2824.7,2823.3,0.584]
[1765997588954,0.46438023,2824.8,2823.3,0.584]
[1765997589150,8.1347,2824.6,2823.3,0.584]
[1765997589340,2.1537,2824.7,2822.7,0.0059]
[1765997589554,0.46438023,2824.8,2822.5,0.02123894]
[1765997589555,7.7493,2824.5,2822.9,0.0059]
[1765997589758,7.7493,2824.5,2823.0,0.0009]
[1765997589958,0.46438023,2824.2,2822.9,0.005]
[1765997590165,2.61808023,2824.4,2823.1,0.0059]
[1765997590166,2.1537,2824.4,2823.1,0.0059]
[1765997590952,0.46438023,2824.3,2823.1,0.0059]
[1765997591154,1.74160066,2824.7,2822.6,0.405504]
[1765997591367,8.2658,2825.0,2823.3,0.005]
[1765997591552,8.2658,2825.0,2823.1,7.08438157]
[1765997591553,0.001,2825.2,2823.8,0.0059]
[1765997591752,1.79497509,2825.1,2823.2,0.0059]
[1765997591960,7.68117472,2824.8,2823.2,0.0059]
[1765997592159,8.2658,2824.6,2823.2,0.0059]
[1765997592371,0.46438023,2824.5,2823.3,0.0059]
[1765997592973,0.46438023,2825.0,2823.0,0.0059]
[1765997593193,1.71509941,2824.9,2823.1,0.0059]
[1765997593377,2.82408023,2824.4,2822.9,0.988504]
[1765997593684,2.82408023,2824.4,2822.9,0.994404]
[1765997593850,0.46438023,2824.4,2823.1,0.0009]
[1765997594050,0.46438023,2824.4,2823.2,0.0059]
[1765997594269,2.3597,2824.8,2823.5,0.0009]
[1765997594468,5.9061,2825.0,2823.4,0.005]
[1765997594669,2.3597,2824.7,2823.2,0.583]
[1765997594979,8.2658,2824.6,2823.1,0.0009]
[1765997595177,8.2658,2824.6,2823.1,0.406404]
[1765997595348,8.2658,2824.6,2823.2,0.0059]
[1765997595549,1.71509941,2824.9,2823.2,0.0059]
[1765997595858,5.9061,2823.8,2822.2,0.005]
[1765997596073,5.9061,2823.5,2822.6,0.002]
[1765997596387,1.77254554,2823.9,2822.6,0.002]
[1765997596388,0.46438023,2823.7,2822.6,0.002]
[1765997596679,2.3597,2823.7,2822.6,0.002]
[1765997596879,0.46438023,2823.6,2822.6,0.002]
[1765997597101,2.3597,2823.6,2822.6,0.002]
[1765997597403,2.3597,2823.9,2822.6,0.002]
[1765997597581,0.46438023,2823.8,2822.6,0.002]
[1765997598378,2.22799398,2824.2,2822.6,0.002]
[1765997598585,0.46438023,2824.2,2822.6,0.002]
[1765997598780,0.46438023,2823.5,2822.6,0.002]
[1765997599102,0.46438023,2823.4,2822.6,0.002]
[1765997599268,2.3597,2823.3,2822.6,0.002]
[1765997599466,8.2658,2823.3,2822.6,0.002]
[1765997599900,2.3597,2823.4,2822.6,0.002]
[1765997600072,5.9061,2822.9,2822.6,0.002]
[1765997600386,8.2658,2822.9,2822.6,0.002]
[1765997600588,8.2658,2822.9,2821.7,0.582]
[1765997601383,8.2658,2822.9,2821.6,0.005]
[1765997601971,0.46438023,2823.5,2821.5,0.002]
[1765997601972,5.49123714,2823.5,2821.5,0.002]
[1765997602176,8.2658,2822.7,2821.5,0.002]
[1765997602494,2.19380148,2822.8,2821.5,0.002]
[1765997602671,0.46438023,2822.5,2821.5,0.002]
[1765997603005,2.3597,2821.8,2821.2,0.002]
[1765997603171,0.46438023,2822.3,2820.3,0.002]
[1765997603172,1.71620548,2822.3,2820.3,0.002]
[1765997603377,1.73578974,2822.0,2820.3,0.002]
[1765997603580,8.2658,2821.4,2820.3,0.002]
[1765997603772,9.34637991,2822.6,2820.3,0.002]
[1765997603773,0.46438023,2822.5,2820.9,0.0139]
[1765997603986,8.2658,2822.4,2820.9,0.0139]
[1765997604189,0.46438023,2822.4,2820.9,0.0139]
[1765997604371,8.2658,2822.3,2820.9,0.0139]
[1765997604572,1.74523714,2823.5,2821.6,0.002]
[1765997604805,0.46438023,2823.2,2821.6,0.002]
[1765997604973,2.3597,2823.1,2821.6,0.002]
[1765997605175,0.46438023,2822.8,2821.6,0.002]
[1765997605377,2.3597,2822.9,2821.6,0.002]
[1765997605572,0.46438023,2822.8,2821.6,0.002]
[1765997606277,0.46438023,2822.8,2821.6,0.0159]
[1765997606477,2.3597,2823.3,2821.8,0.0139]
[1765997606706,0.46438023,2823.2,2821.8,0.0139]
[1765997606889,8.73018023,2823.2,2821.8,0.0139]
[1765997607099,0.46438023,2822.9,2821.6,0.002]
[1765997607602,5.9061,2823.1,2821.6,0.002]
[1765997607803,1.78090962,2823.3,2821.6,0.002]
[1765997608004,0.46438023,2823.0,2821.6,0.002]
[1765997608203,8.73018023,2823.0,2821.6,0.002]
[1765997608373,2.3597,2823.0,2821.6,0.002]
[1765997608589,0.46438023,2822.9,2821.6,0.002]
[1765997608991,0.46438023,2822.9,2821.6,0.0159]
[1765997609188,5.9061,2823.7,2822.0,0.0009]
[1765997609388,0.46438023,2823.1,2822.0,0.0139]
[1765997609907,0.46438023,2823.5,2821.7,0.93801032]